bitfinex/quotes_ETHUSD_20251117
["timestamp","ask_amount","ask_price","bid_price","bid_amount"]
[1763404470581,0.4842,3040.7,3039.5,0.1934]
[1763404471292,0.1903,3041.2,3039.6,0.4749]
[1763404471293,0.405504,3041.1,3039.6,0.4749]
[1763404471495,0.4842,3041.4,3039.7,0.03289798]
[1763404471801,0.1356,3041.9,3040.0,0.88359612]
[1763404471802,0.4862,3041.7,3040.0,0.88359612]
[1763404471963,0.4862,3041.7,3040.1,0.4749]
[1763404472290,0.4862,3041.7,3040.1,1.35849612]
[1763404472450,0.002,3041.7,3040.2,1.39138869]
[1763404472797,0.002,3041.7,3040.4,0.88359612]
[1763404472951,0.002,3041.7,3040.5,0.03288932]
[1763404473285,0.002,3041.7,3040.5,0.4749]
[1763404473792,0.002,3041.7,3040.5,1.35849612]
[1763404473953,0.002,3041.7,3040.6,0.88359612]
[1763404474291,0.002,3041.7,3041.6,0.1934]
[1763404474586,0.002,3041.7,3041.1,0.1934]
[1763404475088,0.002,3041.7,3040.3,1.76636137]
[1763404475089,0.002,3041.7,3040.7,0.1934]
[1763404475461,0.002,3041.7,3040.8,0.50778608]
[1763404475787,0.002,3041.7,3040.7,0.1934]
[1763404476753,0.4925,3041.7,3040.1,1.36319612]
[1763404477052,0.405504,3041.6,3039.6,1.36319612]
[1763404477269,0.77877509,3041.6,3039.6,0.75304726]
[1763404477489,0.4905,3041.5,3039.7,0.4796]
[1763404477692,0.4905,3041.5,3039.7,1.36319612]
[1763404477693,0.405504,3041.4,3039.7,1.36319612]
[1763404477909,0.002,3041.7,3039.8,0.0328969]
[1763404478068,0.002,3041.7,3040.1,0.88359612]
[1763404478400,0.002,3041.7,3040.4,0.88359612]
[1763404478581,0.002,3041.7,3041.0,0.88359612]
[1763404478767,0.002,3041.7,3040.5,0.6631]
[1763404478768,0.002,3041.7,3040.9,0.88359612]
[1763404478977,0.002,3041.7,3040.6,1.36319612]
[1763404479287,0.002,3041.7,3040.7,0.88359612]
[1763404479488,0.002,3041.7,3040.8,0.88359612]
[1763404479652,0.002,3041.7,3040.9,0.032885]
[1763404479855,0.002,3041.7,3040.8,1.36319612]
[1763404479856,0.002,3041.7,3041.0,0.4796]
[1763404480690,0.002,3041.7,3040.7,0.88359612]
[1763404480992,0.002,3041.7,3040.9,0.4796]
[1763404482193,0.002,3041.7,3040.7,0.88359612]
[1763404482394,0.002,3041.7,3040.5,0.1835]
[1763404482693,0.002,3041.7,3040.6,0.4796]
[1763404483206,0.002,3041.7,3040.6,1.36319612]
[1763404483367,0.002,3041.7,3040.7,0.88359612]
[1763404483570,0.002,3041.7,3040.8,0.4796]
[1763404483786,0.002,3041.7,3040.7,0.88359612]
[1763404484091,0.002,3041.7,3040.5,1.36137646]
[1763404484092,0.4905,3041.6,3040.5,0.88359612]
[1763404484664,0.405504,3041.5,3040.4,0.001]
[1763404485173,0.1862,3041.4,3040.5,0.1835]
[1763404485770,0.002,3041.7,3040.6,1.36319612]
[1763404485969,0.002,3041.7,3040.9,0.88359612]
[1763404486401,0.002,3041.7,3041.0,0.88359612]
[1763404486600,0.002,3041.7,3041.1,0.88359612]
[1763404486804,0.002,3041.7,3041.2,0.88359612]
[1763404486967,0.002,3041.7,3041.2,1.36319612]
[1763404487170,0.002,3041.7,3041.3,0.4796]
[1763404487366,0.002,3041.7,3041.2,1.36319612]
[1763404487570,0.002,3041.7,3041.2,1.61730338]
[1763404487888,0.002,3041.7,3041.2,0.73370726]
[1763404488107,0.002,3041.7,3041.3,0.4796]
[1763404488819,0.002,3041.7,3041.1,0.88359612]
[1763404488988,0.002,3041.7,3040.9,1.38402372]
[1763404488989,0.90699264,3041.5,3041.0,0.88359612]
[1763404489333,0.90699264,3041.5,3040.9,0.88359612]
[1763404489472,0.1862,3041.4,3040.6,0.88359612]
[1763404489673,0.1862,3041.4,3040.5,1.06709612]
[1763404490224,0.90699264,3041.5,3040.8,0.88359612]
[1763404490587,0.90699264,3041.5,3040.7,0.88359612]
[1763404490925,0.90699264,3041.5,3040.8,0.88359612]
[1763404491085,6.35,3041.6,3041.2,0.88359612]
[1763404491321,6.35,3041.6,3041.1,0.88359612]
[1763404491705,0.90699264,3041.5,3040.8,0.88359612]
[1763404492745,0.90699264,3041.5,3040.7,1.36319612]
[1763404493144,0.90699264,3041.5,3040.8,0.88359612]
[1763404493518,0.002,3041.7,3040.7,1.15605338]
[1763404493707,0.002,3041.7,3040.8,0.88359612]
[1763404493910,0.002,3041.7,3040.9,0.88359612]
[1763404494409,0.002,3041.7,3040.6,0.88359612]
[1763404494851,0.002,3041.7,3040.6,1.10819338]
[1763404495064,0.002,3041.7,3040.7,0.88359612]
[1763404495272,0.002,3041.7,3040.6,1.36319612]
[1763404495569,0.002,3041.7,3040.7,0.88359612]
[1763404497268,0.002,3041.7,3040.8,0.88359612]
[1763404498137,0.1862,3041.6,3040.8,0.88359612]
[1763404498746,0.405504,3041.5,3040.8,0.88359612]
[1763404499152,0.90699264,3041.3,3040.8,0.88359612]
[1763404499352,6.35,3041.2,3040.8,1.08974338]
[1763404499649,6.35,3041.2,3040.9,0.88359612]
[1763404499650,0.90699264,3041.1,3040.9,0.88359612]
[1763404500170,0.002,3041.7,3041.0,0.4796]
[1763404500366,0.002,3041.7,3041.4,0.8873708]
[1763404500685,0.002,3041.7,3041.5,1.18285595]
[1763404500686,0.4925,3041.7,3041.5,1.18285595]
[1763404500867,0.4925,3041.7,3040.9,0.88721646]
[1763404501064,0.1862,3040.9,3040.4,0.001]
[1763404501384,0.405504,3040.8,3040.4,0.001]
[1763404501588,0.405504,3040.8,3039.3,0.88721646]
[1763404501589,6.351004,3040.8,3039.3,0.88721646]
[1763404501742,6.351004,3040.8,3038.8,1.76636137]
[1763404501748,0.405504,3039.7,3038.8,0.88721646]
[1763404501943,0.405504,3039.7,3038.9,0.88721646]
[1763404502178,0.405504,3039.7,3038.6,0.001]
[1763404502179,0.4905,3039.6,3038.6,0.001]
[1763404502376,0.405504,3039.5,3038.6,0.001]
[1763404502793,0.4905,3039.6,3038.6,0.001]
[1763404502997,0.405504,3039.5,3038.6,0.001]
[1763404503198,0.405504,3039.3,3038.6,0.001]
[1763404503577,0.4905,3039.4,3038.6,0.001]
[1763404503758,0.405504,3039.3,3038.6,0.001]
[1763404504154,0.405504,3039.3,3038.3,0.001]
[1763404504155,1.31249664,3039.1,3038.3,0.001]
[1763404504382,0.4905,3039.2,3038.1,0.001]
[1763404504383,0.405504,3038.9,3038.1,0.001]
[1763404504697,0.405504,3039.0,3038.1,0.001]
[1763404504854,0.405504,3038.8,3037.8,0.001]
[1763404505055,0.405504,3038.0,3037.8,0.001]
[1763404505257,0.405504,3038.0,3036.1,1.31735595]
[1763404505258,0.405504,3038.0,3036.5,0.1355]
[1763404505455,0.1862,3038.1,3036.5,0.1355]
[1763404505659,0.886604,3038.0,3036.5,0.1355]
[1763404506090,0.886604,3038.0,3036.5,0.273]
[1763404506293,0.886604,3038.0,3036.6,0.1375]
[1763404506498,0.186,3038.5,3036.7,0.03293048]
[1763404506699,0.1862,3039.8,3037.5,0.88721646]
[1763404506858,37.73383952,3041.2,3038.3,7.88851353]
[1763404506859,0.4811,3040.8,3038.3,7.88851353]
[1763404507199,0.68503626,3040.8,3038.7,0.88721646]
[1763404507699,0.4811,3040.7,3038.6,0.88721646]
[1763404507884,0.4811,3040.7,3038.8,0.1375]
[1763404509206,0.4811,3041.2,3039.0,0.88721646]
[1763404509365,0.4811,3040.8,3038.9,1.29272046]
[1763404509565,0.68454978,3040.8,3039.0,1.02471646]
[1763404509803,0.4811,3040.7,3039.0,0.1375]
[1763404510051,0.405504,3040.6,3039.0,0.1375]
[1763404510407,0.405504,3040.6,3038.4,0.90699264]
[1763404510408,0.405504,3040.4,3038.6,1.02471646]
[1763404510606,0.405504,3040.2,3038.6,0.1375]
[1763404511037,0.405504,3040.0,3038.6,0.1375]
[1763404511217,0.4811,3040.1,3038.7,0.0329088]
[1763404511407,0.405504,3040.2,3038.6,0.1375]
[1763404511637,0.405504,3040.5,3038.7,0.0329088]
[1763404511824,0.405504,3040.5,3038.8,0.1375]
[1763404512024,0.4811,3040.6,3038.8,0.1375]
[1763404512239,0.20653503,3040.8,3038.9,0.88721646]
[1763404512436,0.1862,3040.9,3039.0,0.88721646]
[1763404512604,0.405504,3040.8,3039.0,0.88721646]
[1763404512944,0.186,3041.5,3039.2,1.29272046]
[1763404512945,0.186,3041.3,3039.2,1.29272046]
[1763404513263,0.186,3041.3,3039.1,0.17040447]
[1763404513264,0.002,3041.7,3039.8,0.405504]
[1763404513450,0.186,3041.4,3039.8,0.88721646]
[1763404513599,0.4811,3041.3,3039.7,0.88721646]
[1763404513802,0.4811,3041.3,3039.6,0.1375]
[1763404513803,0.4811,3041.3,3039.6,0.88721646]
[1763404514003,0.4811,3041.3,3039.7,0.1375]
[1763404514460,0.405504,3041.2,3039.3,0.1375]
[1763404514613,0.405504,3041.2,3039.4,0.1375]
[1763404514813,0.186,3041.4,3039.4,0.1375]
[1763404514814,0.405504,3041.0,3039.4,0.1375]
[1763404515015,0.405504,3041.0,3039.2,0.88721646]
[1763404515247,0.405504,3040.9,3039.3,0.1375]
[1763404516155,0.405504,3040.7,3039.3,0.1375]
[1763404516351,0.4811,3040.8,3039.3,0.1375]
[1763404516553,0.4811,3040.7,3038.9,1.02471646]
[1763404516765,0.886604,3041.3,3039.4,0.1375]
[1763404516913,0.4811,3041.3,3039.5,0.405504]
[1763404517258,0.186,3041.4,3039.7,0.88721646]
[1763404517435,0.186,3041.4,3039.8,0.1375]
[1763404517656,0.186,3041.4,3039.8,1.02471646]
[1763404517657,0.002,3041.3,3039.8,1.02471646]
[1763404517854,0.002,3041.3,3039.8,0.1375]
[1763404518241,0.002,3041.3,3039.6,0.88721646]
[1763404518242,0.405504,3041.1,3039.6,0.88721646]
[1763404518441,0.405504,3041.1,3038.8,2.31364261]
[1763404518442,0.405504,3040.9,3039.1,0.88721646]
[1763404518667,0.405504,3040.9,3038.8,1.02471646]
[1763404518965,0.90899264,3041.3,3038.8,1.02471646]
[1763404518966,0.405504,3040.7,3038.9,0.88721646]
[1763404519181,0.405504,3040.7,3038.9,0.1375]
[1763404519389,0.405504,3040.7,3038.5,0.88721646]
[1763404519390,0.405504,3040.5,3038.5,0.88721646]
[1763404519677,0.405504,3040.5,3038.2,0.88721646]
[1763404519678,0.405504,3040.3,3038.2,0.88721646]
[1763404519976,0.405504,3040.1,3038.1,0.1375]
[1763404520180,0.4752,3040.0,3037.9,0.88721646]
[1763404520344,0.405504,3039.9,3037.9,0.88721646]
[1763404520670,0.405504,3039.9,3037.6,0.88721646]
[1763404520869,0.405504,3039.7,3037.7,0.88721646]
[1763404521332,0.405504,3039.7,3037.5,1.32035595]
[1763404521333,0.405504,3039.6,3037.8,1.02471646]
[1763404521673,0.405504,3039.6,3037.9,0.1375]
[1763404521844,0.405504,3039.4,3037.9,0.88721646]
[1763404522042,0.405504,3039.4,3037.8,0.88721646]
[1763404522279,2.0494566,3040.2,3037.8,1.02511646]
[1763404522280,0.4752,3039.3,3037.8,1.02511646]
[1763404522430,0.4752,3039.3,3037.8,0.1379]
[1763404522631,0.1901,3039.2,3037.8,0.1379]
[1763404522832,0.1901,3039.2,3037.8,1.02511646]
[1763404523045,0.1901,3039.2,3037.8,0.1379]
[1763404523232,0.4752,3039.1,3037.7,0.88721646]
[1763404523433,0.4752,3039.1,3037.7,0.20700724]
[1763404523661,0.4752,3039.1,3037.1,1.18285595]
[1763404523662,0.4752,3039.1,3037.1,0.88721646]
[1763404523869,0.4752,3039.1,3037.0,0.88721646]
[1763404524045,0.4752,3039.1,3037.2,1.02511646]
[1763404524644,0.4752,3039.1,3037.3,0.1379]
[1763404525372,0.4752,3039.1,3037.3,1.02511646]
[1763404525681,0.4752,3039.1,3037.3,0.1379]
[1763404526284,0.1901,3039.2,3037.5,9.09558817]
[1763404526471,0.1901,3039.2,3037.9,9.09558817]
[1763404526682,0.002,3041.3,3038.0,0.1379]
[1763404526683,0.4752,3040.0,3038.0,0.1379]
[1763404527365,0.32300617,3040.9,3038.4,9.09558817]
[1763404527545,0.6653,3040.2,3038.5,0.03291097]
[1763404527747,0.4752,3040.7,3038.6,0.88721646]
[1763404527983,0.4752,3040.7,3038.5,0.1379]
[1763404527984,0.4752,3041.2,3038.9,9.98280463]
[1763404528279,0.4752,3041.2,3039.2,0.88721646]
[1763404528571,0.4752,3041.2,3039.4,0.88721646]
[1763404528802,0.4752,3041.2,3039.3,1.02511646]
[1763404528940,0.4752,3041.2,3039.4,1.02511646]
[1763404529374,0.4752,3041.2,3039.3,0.88721646]
[1763404529572,0.90699264,3041.1,3039.1,0.88721646]
[1763404529773,0.405504,3040.9,3039.2,0.21811364]
[1763404529948,0.405504,3040.9,3039.1,0.88721646]
[1763404530272,0.4752,3040.8,3039.2,0.1379]
[1763404530673,0.4752,3040.8,3039.2,1.02511646]
[1763404531842,0.4752,3040.8,3039.0,0.88721646]
[1763404532237,0.4752,3040.8,3039.1,0.1379]
[1763404532442,0.1901,3039.1,3038.2,0.88721646]
[1763404532662,0.405504,3039.9,3038.0,0.88721646]
[1763404532862,0.1901,3039.4,3038.1,0.88721646]
[1763404533100,0.1901,3039.4,3038.0,0.88721646]
[1763404533301,0.4752,3039.3,3037.9,0.88721646]
[1763404533513,0.4752,3039.3,3037.6,0.88721646]
[1763404533807,0.4752,3039.3,3037.7,1.02511646]
[1763404534031,0.4752,3039.3,3037.8,0.88721646]
[1763404534201,0.1901,3039.4,3037.9,0.88721646]
[1763404534509,0.1901,3039.4,3038.0,0.88721646]
[1763404534868,0.4752,3039.7,3038.1,1.05803176]
[1763404535111,0.4752,3039.7,3038.2,1.02511646]
[1763404535416,0.4752,3039.7,3038.2,0.88721646]
[1763404535988,0.4752,3039.7,3038.2,1.02511646]
[1763404536194,0.4771,3040.2,3038.7,0.88721646]
[1763404536391,0.002,3039.6,3038.6,0.88721646]
[1763404536782,0.002,3039.6,3038.8,0.88721646]
[1763404537103,0.002,3039.6,3039.4,0.88721646]
[1763404537316,0.002,3039.6,3039.5,0.9201166]
[1763404537616,0.002,3040.0,3039.5,0.34619726]
[1763404537820,0.002,3040.0,3039.8,0.88446681]
[1763404537976,0.002,3040.0,3039.6,0.88446681]
[1763404538183,0.002,3040.0,3039.6,1.02036681]
[1763404538383,0.002,3040.0,3039.5,1.09476407]
[1763404538681,0.002,3040.0,3039.6,0.88446681]
[1763404538884,0.002,3040.0,3039.6,0.24098188]
[1763404539083,0.002,3040.0,3039.6,0.1359]
[1763404539311,0.002,3040.0,3039.4,0.88446681]
[1763404539484,0.002,3040.0,3039.2,0.88446681]
[1763404539809,0.002,3040.0,3039.0,0.88446681]
[1763404540005,0.4791,3040.0,3039.0,0.88446681]
[1763404540227,0.4791,3040.0,3038.8,0.88446681]
[1763404540429,0.4791,3040.0,3038.3,0.88446681]
[1763404540430,0.405504,3039.9,3038.3,0.88446681]
[1763404540815,0.4771,3039.8,3038.4,0.88446681]
[1763404541003,0.4771,3039.8,3038.3,0.88446681]
[1763404541205,0.4771,3039.8,3038.2,0.88446681]
[1763404541398,0.4771,3039.8,3038.4,0.88446681]
[1763404541614,0.4771,3039.8,3038.5,0.03291097]
[1763404541831,0.4771,3039.8,3038.5,0.91737778]
[1763404542029,0.1863,3038.6,3037.8,0.88446681]
[1763404542205,0.1863,3038.6,3037.7,0.88446681]
[1763404542400,0.1863,3038.9,3037.7,0.88466363]
[1763404542827,0.6634,3038.9,3037.7,0.88466363]
[1763404543134,0.6634,3038.9,3037.8,0.88466363]
[1763404543135,0.1863,3038.9,3037.8,0.88466363]
[1763404543522,0.1863,3038.9,3037.9,0.88466363]
[1763404543724,0.1863,3039.3,3038.1,0.88466363]
[1763404543926,0.1863,3039.3,3038.3,0.88466363]
[1763404544126,0.1863,3039.3,3038.3,0.20638184]
[1763404544127,0.4771,3039.2,3038.3,0.20638184]
[1763404544329,0.4771,3039.2,3038.2,0.88466363]
[1763404544630,0.4771,3039.2,3038.1,0.88466363]
[1763404545515,0.4771,3039.2,3038.0,0.88466363]
[1763404545720,0.4771,3039.2,3038.1,0.88466363]
[1763404546030,0.4771,3039.2,3038.3,0.88466363]
[1763404546228,0.4771,3039.2,3038.2,0.88466363]
[1763404546524,0.1863,3039.3,3038.4,0.88466363]
[1763404546729,0.4771,3039.9,3038.4,0.88466363]
[1763404546939,6.35,3039.8,3038.5,0.88466363]
[1763404547139,6.35,3039.8,3038.6,0.88466363]
[1763404547140,0.90699264,3039.8,3038.6,0.88466363]
[1763404547440,0.90699264,3039.8,3038.7,0.88466363]
[1763404548079,0.4771,3039.7,3038.5,0.88466363]
[1763404548287,0.4771,3039.7,3038.6,0.88466363]
[1763404548490,0.4771,3039.7,3038.7,0.88466363]
[1763404548849,0.4771,3039.7,3038.6,0.88466363]
[1763404549457,0.90699264,3039.8,3038.8,0.88466363]
[1763404549658,0.90699264,3039.8,3039.0,0.88466363]
[1763404550058,0.90699264,3039.8,3039.0,1.02056363]
[1763404550390,6.35,3039.9,3039.2,0.88466363]
[1763404550571,6.35,3039.9,3039.4,0.88466363]
[1763404550776,0.90699264,3039.8,3039.4,0.88466363]
[1763404551284,0.90699264,3039.8,3039.1,0.88466363]
[1763404551285,0.4771,3039.7,3039.1,0.88466363]
[1763404551458,0.90699264,3039.8,3039.1,0.88466363]
[1763404551663,0.90699264,3039.8,3039.2,0.88466363]
[1763404551848,0.002,3040.0,3039.4,0.88466363]
[1763404552282,0.002,3040.0,3039.5,0.88466363]
[1763404552585,0.4791,3040.0,3039.5,0.88466363]
[1763404552885,0.4791,3040.0,3038.7,2.31364261]
[1763404552886,0.4791,3040.0,3039.2,0.88466363]
[1763404553272,0.002,3040.0,3039.2,0.88466363]
[1763404553905,0.4791,3040.0,3039.2,0.88466363]
[1763404554700,0.4791,3040.0,3039.0,0.88566363]
[1763404554876,0.002,3039.8,3039.0,0.88566363]
[1763404555078,0.002,3039.8,3039.3,0.88466363]
[1763404555806,0.002,3039.8,3039.4,0.88466363]
[1763404556406,0.002,3039.8,3039.5,0.88466363]
[1763404556705,0.002,3039.8,3039.5,1.09104547]
[1763404557017,0.4791,3039.8,3039.4,0.88466363]
[1763404557169,0.002,3039.8,3039.4,0.88466363]
[1763404557514,0.002,3039.8,3039.6,0.88466363]
[1763404558905,0.002,3039.8,3039.7,0.88629086]
[1763404559467,0.002,3039.8,3039.5,1.17915475]
[1763404559687,0.002,3039.8,3039.7,0.88636356]
[1763404559884,0.002,3039.8,3039.7,1.09291539]
[1763404560085,0.002,3039.8,3039.7,0.20655183]
[1763404560288,0.002,3039.8,3039.7,1.09291403]
[1763404560690,0.90699264,3039.7,3039.3,0.8863622]
[1763404561016,0.90699264,3039.7,3039.0,0.001]
[1763404561228,0.90699264,3039.7,3039.2,0.8863622]
[1763404561388,0.90699264,3039.7,3039.6,0.8863622]
[1763404561588,6.352,3039.8,3039.5,1.17915475]
[1763404561787,6.352,3039.8,3039.6,1.17915475]
[1763404561788,0.002,3039.8,3039.6,1.17915475]
[1763404561987,0.002,3039.8,3039.7,1.1818736]
[1763404562188,0.002,3039.8,3039.7,1.47693417]
[1763404562391,0.002,3039.8,3039.7,0.88638341]
[1763404562817,0.002,3039.8,3039.6,0.88638341]
[1763404562975,0.002,3039.8,3039.7,0.88638341]
[1763404563177,0.002,3039.8,3039.0,0.1369]
[1763404563178,0.4771,3039.7,3039.0,1.76973213]
[1763404563381,0.4771,3039.7,3038.6,0.001]
[1763404563382,0.405504,3039.6,3038.6,0.001]
[1763404563810,0.4771,3039.5,3038.6,0.001]
[1763404564181,0.002,3039.8,3038.8,1.76873213]
[1763404564490,0.002,3039.8,3038.9,0.03290664]
[1763404564692,0.002,3039.8,3039.5,0.405504]
[1763404564909,0.002,3039.8,3039.4,11.27287789]
[1763404564910,0.002,3040.0,3039.6,0.03289906]
[1763404565112,0.002,3040.0,3039.9,11.68152406]
[1763404565325,0.002,3040.3,3039.9,11.81778837]
[1763404565501,0.002,3040.3,3039.6,1.18506874]
[1763404565502,0.4984,3040.3,3039.5,1.77165279]
[1763404565701,0.4984,3040.3,3039.2,1.77165279]
[1763404565879,0.002,3040.3,3039.4,0.405504]
[1763404566194,0.4964,3040.2,3039.5,0.22100591]
[1763404566428,0.002,3040.3,3039.5,0.22100591]
[1763404566626,0.002,3040.3,3039.3,1.77165279]
[1763404566843,0.002,3040.3,3039.2,1.77165279]
[1763404567014,0.002,3040.3,3038.6,0.406504]
[1763404567015,0.4964,3040.2,3039.0,1.77165279]
[1763404567212,0.4964,3040.2,3038.9,1.77165279]
[1763404567464,0.405504,3040.1,3039.0,0.17716528]
[1763404567818,0.1908,3039.1,3038.7,1.77165279]
[1763404568117,0.1908,3039.1,3038.6,0.001]
[1763404568965,0.4964,3039.6,3038.6,0.001]
[1763404568966,0.1908,3039.3,3038.6,0.001]
[1763404569922,0.4964,3039.6,3038.6,0.001]
[1763404570200,0.1908,3039.5,3038.6,0.001]
[1763404570465,0.1908,3039.5,3038.6,1.94991807]
[1763404570867,0.1908,3039.5,3038.6,0.001]
[1763404570868,0.1908,3038.7,3038.6,0.001]
[1763404571230,0.6872,3038.7,3038.6,0.001]
[1763404571554,0.6872,3038.7,3037.5,2.31364261]
[1763404571555,0.4964,3038.7,3037.5,1.77165279]
[1763404571724,0.4964,3038.6,3037.5,1.77165279]
[1763404571922,0.4964,3038.6,3037.0,2.44854261]
[1763404571923,0.4964,3038.6,3037.4,1.77165279]
[1763404572153,0.4964,3038.6,3037.0,2.44854261]
[1763404572154,0.4964,3038.6,3037.2,1.77165279]
[1763404572321,0.4964,3038.6,3037.3,1.77265279]
[1763404572518,0.4964,3038.6,3037.3,0.001]
[1763404572717,0.4964,3038.6,3037.3,1.77265279]
[1763404572967,0.4964,3038.6,3037.5,1.77165279]
[1763404573323,0.4964,3038.6,3037.4,1.77165279]
[1763404574066,0.4964,3038.6,3038.5,0.001]
[1763404574222,0.1908,3038.9,3038.5,0.001]
[1763404574428,0.4964,3038.8,3038.5,0.001]
[1763404574737,0.4964,3038.8,3038.2,0.001]
[1763404574738,0.405504,3038.7,3038.2,0.001]
[1763404575273,0.405504,3038.7,3037.9,0.001]
[1763404575274,0.405504,3038.5,3037.9,0.001]
[1763404575436,0.405504,3038.5,3037.6,0.001]
[1763404575765,0.405504,3038.5,3037.3,0.001]
[1763404575766,0.405504,3037.6,3037.3,0.001]
[1763404576221,0.4964,3037.5,3037.3,0.001]
[1763404576421,0.405504,3037.4,3036.5,0.001]
[1763404576923,0.1908,3036.6,3036.5,0.001]
[1763404577127,0.4964,3037.3,3036.5,0.001]
[1763404579364,0.1908,3037.7,3036.5,0.001]
[1763404579737,0.1908,3039.5,3036.7,9.90964976]
[1763404580061,0.6632,3038.9,3037.1,0.405504]
[1763404580265,0.6632,3038.9,3037.3,1.77165279]
[1763404580423,0.1908,3038.9,3037.3,1.77165279]
[1763404580623,0.1851,3039.1,3037.4,0.1399]
[1763404580856,0.4724,3039.4,3037.5,1.96280807]
[1763404581058,0.1851,3040.0,3037.8,1.77165279]
[1763404581225,0.002,3040.3,3038.7,11.27579855]
[1763404581548,0.1871,3040.3,3038.6,1.77165279]
[1763404581755,0.4724,3040.2,3038.7,0.17716528]
[1763404582060,0.4724,3040.2,3038.8,0.03290772]
[1763404582275,0.4724,3040.2,3038.3,1.77165279]
[1763404582475,0.4724,3040.2,3038.1,1.91155279]
[1763404582822,0.4724,3040.2,3038.1,0.1399]
[1763404582823,0.405504,3040.1,3038.1,0.1399]
[1763404583029,0.405504,3040.1,3038.2,0.1399]
[1763404583226,0.4724,3040.0,3038.2,0.1399]
[1763404583426,0.4724,3040.0,3038.2,0.33105528]
[1763404583728,0.4724,3040.0,3037.8,1.91155279]
[1763404583930,1.31249664,3039.6,3037.5,0.19115528]
[1763404584161,1.31249664,3039.6,3037.1,1.91155279]
[1763404584162,0.405504,3039.4,3037.1,0.1399]
[1763404584431,1.31249664,3039.4,3036.8,1.77165279]
[1763404584642,1.31249664,3039.1,3036.9,0.1399]
[1763404584826,9.50414576,3039.2,3036.9,0.1399]
[1763404584827,0.405504,3039.2,3036.9,0.1399]
[1763404585029,0.405504,3039.0,3036.6,0.1399]
[1763404585224,0.405504,3038.8,3036.6,0.1399]
[1763404585661,1.68951236,3039.8,3036.6,0.1399]
[1763404585662,0.4724,3038.7,3036.6,2.05145279]
[1763404585863,0.4724,3038.7,3036.7,1.91155279]
[1763404586062,0.4724,3038.7,3036.8,0.1399]
[1763404586568,0.4724,3038.7,3036.8,1.91155279]
[1763404586773,0.4724,3038.7,3036.9,0.19115528]
[1763404586960,0.90699264,3038.6,3036.9,2.10270807]
[1763404587167,0.90699264,3038.6,3037.0,0.1399]
[1763404587735,0.4724,3038.5,3036.9,0.19115528]
[1763404588130,0.4724,3038.5,3036.6,1.91155279]
[1763404588357,0.4724,3038.5,3036.6,2.05145279]
[1763404588636,0.4724,3038.5,3036.7,0.1399]
[1763404589633,0.1871,3040.3,3037.0,0.405504]
[1763404589833,0.4724,3039.8,3037.2,2.17715679]
[1763404590070,0.4724,3039.8,3037.3,2.12926847]
[1763404590271,0.405504,3039.7,3037.4,1.77165279]
[1763404590566,0.4724,3039.8,3037.3,1.98936847]
[1763404590743,0.405504,3039.6,3037.3,1.98936847]
[1763404590944,0.405504,3039.6,3037.4,0.1399]
[1763404591145,0.4724,3039.6,3037.4,0.1399]
[1763404591489,0.4724,3039.6,3037.5,0.21292685]
[1763404591673,0.4724,3039.6,3037.4,0.1399]
[1763404592030,0.405504,3039.5,3037.4,0.1399]
[1763404592434,0.4724,3039.4,3037.4,0.1399]
[1763404593096,0.90699264,3039.2,3037.4,1.91155279]
[1763404593266,0.90699264,3039.0,3037.7,1.17677071]
[1763404593463,0.90699264,3039.0,3037.8,0.1399]
[1763404594475,0.90699264,3039.0,3037.8,1.31667071]
[1763404594964,0.90699264,3039.0,3037.9,0.545404]
[1763404595186,0.90699264,3039.0,3038.0,1.48888818]
[1763404595564,6.35,3039.1,3038.1,0.1399]
[1763404595866,0.4638,3040.0,3038.4,1.17677071]
[1763404596177,0.4638,3040.0,3038.3,1.17677071]
[1763404596377,0.4638,3040.0,3038.4,1.17677071]
[1763404596590,0.4638,3040.0,3038.2,1.17677071]
[1763404596794,0.4638,3040.0,3038.3,1.17677071]
[1763404597296,1.23587926,3040.0,3038.3,1.17677071]
[1763404597706,1.23587926,3040.0,3038.0,0.17221747]
[1763404597707,0.4638,3039.9,3038.2,1.17677071]
[1763404598006,0.90699264,3039.7,3038.2,1.17677071]
[1763404598194,0.4638,3039.6,3038.0,0.17221747]
[1763404600714,0.4638,3039.6,3038.0,0.16315747]
[1763404601026,1.23587926,3039.6,3038.0,0.30305747]
[1763404601233,0.4638,3040.1,3038.5,1.17677071]
[1763404601590,0.002,3040.7,3038.6,1.31667071]
[1763404601790,0.4638,3040.6,3038.9,1.17677071]
[1763404602013,0.4638,3040.6,3038.7,1.77165279]
[1763404602014,0.4638,3040.6,3039.1,1.17677071]
[1763404602598,0.6509,3040.3,3039.1,1.47161306]
[1763404602891,0.6509,3040.3,3039.1,0.29484235]
[1763404603215,0.90699264,3040.1,3038.7,1.17677071]
[1763404603632,0.4638,3040.0,3038.7,1.17677071]
[1763404603836,0.4638,3040.0,3038.6,1.17677071]
[1763404603996,0.4638,3040.0,3038.4,1.17677071]
[1763404604197,0.90699264,3040.1,3038.6,1.17677071]
[1763404604527,2.1152019,3040.1,3038.7,1.31667071]
[1763404604836,1.6514019,3040.1,3038.8,1.17677071]
[1763404605134,0.4638,3040.0,3038.6,1.31667071]
[1763404605298,0.90699264,3040.1,3038.7,1.17677071]
[1763404605491,0.90699264,3040.1,3038.7,1.31667071]
[1763404605695,6.35,3040.2,3038.9,1.58227471]
[1763404606021,0.002,3040.3,3040.1,0.1399]
[1763404606694,0.002,3040.3,3039.3,2.31364261]
[1763404606695,0.1848,3039.9,3039.8,1.17639496]
[1763404606895,0.0985,3038.4,3038.2,2.87052971]
[1763404607127,0.0985,3038.4,3036.9,0.4964]
[1763404607128,0.49396304,3038.3,3036.9,0.4964]
[1763404607294,0.0985,3038.4,3037.1,0.4964]
[1763404607635,1.84684132,3038.3,3036.7,0.1959]